Cogmind - Beta 15 @@@ ROGUE MODE // 2025.09.09 @ 15:32:27 Player: potator Result: Destroyed by T7-11P(j) with Overtuned Pulse Rifle Performance ------------- Evolutions (0) 0 Regions Visited (3) 600 Robots Destroyed (32) 160 Value Destroyed (619) 619 Prototype IDs (2) 40 Alien Tech Used (0) 0 Bonus (800) 800 TOTAL SCORE: 2219 Bonus ------- Registered with UFD 300 Met Optimus in HQ 500 Cogmind --------- Core Integrity 0/250 Matter 294/300 Energy 275/275 System Corruption 0% Temperature Warm (152) Movement Core (250) Ox4 Location -8/Scraptown Parts ------- > --- POWER (1) -------- Deuterium Engine > --- PROPULSION (2) --- (None) > --- UTILITY (2) ------ Small Storage Unit Structural Scanner > --- WEAPON (2) ------- (None) > --- INVENTORY (8) ---- Overtuned Treads Subdweller Optics Transport Network Coupler Makeshift ECM Suite Improved Grenade Launcher Improved Datajack DRS Beacon (Ready) Peak State ------------ > --- POWER ------------ Deuterium Engine > --- PROPULSION ------- Armored Treads Overtuned Treads > --- UTILITY ---------- Small Storage Unit Structural Scanner > --- WEAPON ----------- Assault Rifle Assault Rifle > --- INVENTORY -------- Light Treads Subdweller Optics Transport Network Coupler Makeshift ECM Suite Assault Rifle Improved Grenade Launcher Improved Datajack DRS Beacon [Rating: 15] Favorites ----------- Power Deuterium Engine Engine Deuterium Engine Propulsion Light Treads Treads Light Treads Utility Small Storage Unit Device Structural Scanner Storage Small Storage Unit Weapon Assault Rifle Ballistic Gun Assault Rifle Launcher Improved Grenade Launcher Special Melee Weapon Improved Datajack Build | -11 -10 -10 -8 ------- Run | Yrd Mat Sub Scr Slots Evolved . | . . . . Power . | . . . . Propulsion . | . . . . Utility . | . . . . Weapon . | . . . . Parts Attached 24 | 6 9 1 8 Power 5 | 1 2 . 2 Engine 5 | 1 2 . 2 Core . | . . . . Reactor . | . . . . Propulsion 6 | 2 1 . 3 Treads 6 | 2 1 . 3 Leg . | . . . . Wheel . | . . . . Hover . | . . . . Flight . | . . . . Utility 4 | 1 3 . . Device 3 | . 3 . . Storage 1 | 1 . . . Processor . | . . . . Hackware . | . . . . Protection . | . . . . Artifact . | . . . . Weapon 9 | 2 3 1 3 Energy Gun . | . . . . Energy Cannon . | . . . . Ballistic Gun 5 | 2 3 . . Ballistic Cannon . | . . . . Launcher 2 | . . 1 1 Special Weapon . | . . . . Impact Weapon . | . . . . Slashing Weapon . | . . . . Piercing Weapon . | . . . . Special Melee Weapon 2 | . . . 2 Unidentified Prototypes . | . . . . Parts Lost 7 | . . 2 5 Power 1 | . . 1 . Propulsion 3 | . . 1 2 Utility . | . . . . Weapon 3 | . . . 3 Highest Loss Streak 4 | . . 2 4 To Critical Strikes . | . . . . Average Backups 6 | 2 4 7 7 Power . | . . . . Propulsion . | . . . . Utility 2 | . 1 3 3 Weapon 3 | 1 2 3 4 Tool/Special . | . . . . Unused Backups 4 | . 1 . 3 Power . | . . . . Propulsion . | . . . . Utility 4 | . 1 . 3 Weapon . | . . . . Tool/Special . | . . . . Average Slot Usage (%) 84 | . 94 99 75 Engine 11 | . 14 13 10 Treads 23 | . 27 28 20 Device 12 | . 9 14 14 Storage 14 | . 14 14 14 Ballistic Gun 12 | . 27 27 2 Special Melee Weapon 7 | . . . 12 Peak Build Rating 15 | 6 8 7 15 Average Rating 8 | 1 6 6 10 On Entrance 4 | . 6 8 5 Naked Turns . | . . . . Heaviest Build 19 | 11 16 16 19 Greatest Support 40 | 40 40 40 40 Greatest Overweight (x) . | . . . . Average Overweight (x) . | . . . . Largest Inventory Capacity 8 | 8 8 8 8 Average Capacity 7 | 5 8 8 8 Most Carried 8 | 5 8 7 8 Average Carried 6 | 3 4 7 7 Final Capacity 8 | 8 8 8 8 Final Carried 7 | . 7 7 7 Class Distribution -------------------- 100% | Mutant Dominant Class ---------------- Mutant | -10/Materials Mutant | -10/Subcaves Mutant | -8/Scraptown Resources | -11 -10 -10 -8 ----------- Run | Yrd Mat Sub Scr Matter Collected 954 | 253 447 17 237 Remotely . | . . . . Salvage Created 782 | . 680 32 70 Parts 67 | . 60 3 4 Haulers Intercepted 1 | . 1 . . Recyclers Shooed . | . . . . Parts Field Recycled . | . . . . Retrieved Matter . | . . . . Parts Self-Destructed 31 | . . 12 19 Prevented . | . . . . Kills | -11 -10 -10 -8 ------- Run | Yrd Mat Sub Scr Combat Hostiles Destroyed 27 | . 24 2 1 Guns 27 | . 24 2 1 Classes Destroyed 6 | . 4 1 1 Hauler 1 | . 1 . . Turret 2 | . . 2 . Watcher 2 | . 2 . . Swarmer 17 | . 15 2 . Grunt 9 | . 9 . . Scrapper 1 | . . . 1 Best Kill Streak 7 | . 7 4 1 Combat Bots Only 7 | . 7 2 1 Max Kills in Single Turn 2 | . 2 1 1 Gunslinging 1 | . 1 . . Exploded . | . . . . Melee . | . . . . Uniques/NPCs Destroyed . | . . . . Combat | -11 -10 -10 -8 -------- Run | Yrd Mat Sub Scr Hostile Shots Fired 186 | . 78 58 50 Missed 64 | . 29 28 7 Hits 122 | . 49 30 43 Projectile 122 | . 49 30 43 Critical Strikes 5 | . . . 5 Damage Taken 1597 | . 461 251 885 Core 253 | . 55 28 170 Absorbed by Shields . | . . . . Core Remaining (%) 100 | 100 . . . Volleys Fired 78 | . 57 10 11 Largest 2 | . 2 2 2 Hottest 50 | . 40 50 40 Shots Fired 153 | . 114 20 19 Gun 150 | . 114 17 19 Cannon . | . . . . Launcher 3 | . . 3 . Special . | . . . . Kinetic 150 | . 114 17 19 Thermal . | . . . . Explosive 3 | . . 3 . Electromagnetic . | . . . . Robot Hit Streak 9 | . 6 9 7 Robot Miss Streak 5 | . 5 2 4 Penetration Max . | . . . . Secondary Targets 4 | . 4 . . Max Gunslinging Chain 1 | . 1 . . Shots Hit Robots 92 | . 67 15 10 Core Hits 50 | . 36 11 3 Critical Kills . | . . . . Critical Parts Destroyed 1 | . 1 . . Critical Strikes 1 | . 1 . . Destroy 1 | . 1 . . Melee Attacks . | . . . . Impact . | . . . . Slashing . | . . . . Piercing . | . . . . Sneak Attacks . | . . . . Combat Hostiles . | . . . . Follow-up Attacks . | . . . . Damage Inflicted 1266 | . 905 233 128 Guns 1191 | . 905 158 128 Cannons . | . . . . Explosions 75 | . . 75 . Melee . | . . . . Ramming . | . . . . Kinetic 1191 | . 905 158 128 Thermal . | . . . . Explosive 75 | . . 75 . Electromagnetic . | . . . . Impact . | . . . . Slashing . | . . . . Piercing . | . . . . Highest Corruption . | . . . . Average Corruption . | . . . . Corruption Purged . | . . . . Corruption Blocked . | . . . . Overload Shots . | . . . . Overflow Damage . | . . . . Projectiles . | . . . . Explosions . | . . . . Melee . | . . . . Knockbacks . | . . . . Impact . | . . . . Kinetic . | . . . . Secondary . | . . . . Self-Inflicted Damage . | . . . . Shots . | . . . . Rammed . | . . . . Targets Rammed . | . . . . Kicked . | . . . . Crushed . | . . . . Highest Temperature 93 | . 5 . 93 Average Temperature 17 | . 1 . 20 Received Heat Transfer 881 | . 132 153 596 Siege Activations . | . . . . Martial Activations . | . . . . Shielding Activations . | . . . . Robots Disrupted . | . . . . Combat Hostiles . | . . . . Robots Corrupted . | . . . . Combat Hostiles . | . . . . Parts Fried . | . . . . Impact Corruptions . | . . . . Robots Melted . | . . . . Combat Hostiles . | . . . . Parts Melted 1 | . . . 1 Heat Transferred . | . . . . Parts Sabotaged . | . . . . Parts Stolen . | . . . . Parts Stripped . | . . . . Power Chain Reactions . | . . . . Alert | -11 -10 -10 -8 ------- Run | Yrd Mat Sub Scr Maximum Alert Level 1 | . 1 . . Low Security (%) 40 | 100 39 . . Level 1 59 | . 60 . . Level 2 . | . . . . Level 3 . | . . . . Level 4 . | . . . . Level 5 . | . . . . High Security . | . . . . Max Security . | . . . . Peak Influence 294 | . 294 . . Initial . | . . . . Average 163 | . 168 . . Influence Increases 711 | . 601 110 . Destroy 0b10 Robot/C 560 | . 480 80 . Destroy 0b10 Robot/NC 15 | . 15 . . Destroy Leader 86 | . 86 . . Successful Hack 5 | . 5 . . Lose Combat Pursuer 45 | . 15 30 . Influence Decreases 711 | . 352 289 70 Entered New Map 191 | . . 121 70 Time Decay 500 | . 352 148 . Lost Part 20 | . . 20 . Squads Dispatched 4 | . 4 . . Investigation 3 | . 3 . . Extermination . | . . . . Reinforcement 1 | . 1 . . Assault . | . . . . Garrison . | . . . . Intercept . | . . . . Searches Triggered . | . . . . Construction Impeded . | . . . . Haulers Reinforced . | . . . . Active Scanning Responses . | . . . . Cargo Convoy Interrupts . | . . . . Stealth | -11 -10 -10 -8 --------- Run | Yrd Mat Sub Scr Distress Signals 3 | . 3 . . Communications Jammed . | . . . . Distress Signals . | . . . . Times Spotted 57 | . 31 9 17 Peak Tracking Total 6 | . 4 5 6 Tactical Retreats 2 | . 1 1 . Traps | -11 -10 -10 -8 ------- Run | Yrd Mat Sub Scr Traps Triggered 4 | . 4 . . Indirectly . | . . . . Trap Hack Attempts . | . . . . Triggered . | . . . . Disarmed . | . . . . Reprogrammed . | . . . . Reused . | . . . . Traps Extracted . | . . . . Installed . | . . . . Triggered . | . . . . Machines | -11 -10 -10 -8 ---------- Run | Yrd Mat Sub Scr Machines Disabled 2 | . . 2 . Max in Single Turn 2 | . . 2 . Machines Repaired . | . . . . Machines Dismantled . | . . . . Machines Sabotaged . | . . . . Overloaded Fab Kills . | . . . . Hacking | -11 -10 -10 -8 --------- Run | Yrd Mat Sub Scr Machines Accessed 16 | . 6 2 8 Terminals 6 | . 6 . . Fabricators . | . . . . Repair Stations . | . . . . Recycling Units . | . . . . Scanalyzers . | . . . . Garrison Access . | . . . . Total Hacks 70 | . 11 2 57 Successful 63 | . 4 2 57 Failed 7 | . 7 . . Catastrophic 2 | . 2 . . Database Lockouts . | . . . . Manual . | . . . . Terminals 11 | . 11 . . Fabricators . | . . . . Repair Stations . | . . . . Recycling Units . | . . . . Scanalyzers . | . . . . Garrison Access . | . . . . Terminal Hacks 63 | . 4 2 57 Record 59 | . 2 . 57 Prototype ID Bank 1 | . 1 . . Open Door 1 | . . 1 . Hauler Manifests 1 | . 1 . . Release Object 1 | . . 1 . Fabricator Hacks . | . . . . Repair Station Hacks . | . . . . Recycling Unit Hacks . | . . . . Scanalyzer . | . . . . Garrison Access Hacks . | . . . . Unauthorized Hacks . | . . . . Terminals . | . . . . Fabricators . | . . . . Repair Stations . | . . . . Recycling Units . | . . . . Scanalyzers . | . . . . Garrison Access . | . . . . Data Cores Recovered . | . . . . Used . | . . . . Hacking Detections 5 | . 5 . . Full Trace Events 1 | . 1 . . Feedback Events . | . . . . Feedback Blocked . | . . . . Robot Schematics Acquired . | . . . . Robots Built . | . . . . Authchips . | . . . . Time . | . . . . Total Robot Build Rating . | . . . . Part Schematics Acquired . | . . . . Parts Built . | . . . . Authchips . | . . . . Time . | . . . . Total Part Build Rating . | . . . . Parts Repaired . | . . . . Time . | . . . . Parts Recycled . | . . . . Recycled Matter . | . . . . Retrieved Matter . | . . . . Retrieved Components . | . . . . Parts Scanalyzed . | . . . . Part Schematics Acquired . | . . . . Parts Damaged . | . . . . Bothacking | -11 -10 -10 -8 ------------ Run | Yrd Mat Sub Scr Used RIF Installer . | . . . . Robots Hacked . | . . . . Non-combat . | . . . . Combat . | . . . . Robot Hacks Applied . | . . . . Relay Couplers Released . | . . . . Fabnet Peak Effective % . | . . . . Robots Rewired . | . . . . Allies Hacked . | . . . . Hacks Repelled . | . . . . Allies | -11 -10 -10 -8 -------- Run | Yrd Mat Sub Scr Total Allies . | . . . . Largest Group . | . . . . Highest-Rated Group . | . . . . Highest-Rated Ally . | . . . . Total Orders . | . . . . Ally Attacks . | . . . . Total Damage . | . . . . Kills . | . . . . Allies Corrupted . | . . . . Allies Melted 3 | . . . 3 Intel | -11 -10 -10 -8 ------- Run | Yrd Mat Sub Scr Active Infowar (turns) 4439 | . 1166 362 2911 Optics 379 | . 379 . . Terrain 274 | . 274 . . Structural 3786 | . 513 362 2911 Robot Analysis Total . | . . . . Derelict Logs Recovered 1 | . . . 1 Drone Launches . | . . . . Drone Recoveries . | . . . . Exploration | -11 -10 -10 -8 ------------- Run | Yrd Mat Sub Scr Turns Passed 5076 | 48 1755 362 2911 Spaces Moved 2700 | 34 696 205 1765 Core 15 | 15 . . . Treads 2685 | 19 696 205 1765 Legs . | . . . . Wheels . | . . . . Hover . | . . . . Flight . | . . . . Fastest Speed 50 | 50 160 160 155 Average Speed 160 | 111 160 160 161 Slowest Speed 170 | 160 160 160 170 Overloaded Moves . | . . . . Propulsion Burnouts . | . . . . Robots Hopped . | . . . . Potential Cave-ins . | . . . . Cave-ins Triggered . | . . . . Exploration Rate (%) 52 | 4 99 12 94 Regions Visited 3 Branch Regions 2 Pre-discovered Areas 3 | . . . 3 Known Exits Taken . | . . . . Unknown Exits Taken 3 | 1 1 1 . Scrap Searched 6 | . . . 6 Spaces Dug . | . . . . Terrain Destroyed 6 | . . 6 . Melee . | . . . . Projectile . | . . . . AOE 6 | . . 6 . Terrain Rammed . | . . . . Walls Destroyed . | . . . . Machines Disabled . | . . . . Actions | -11 -10 -10 -8 --------- Run | Yrd Mat Sub Scr Total 3300 | 44 1224 218 1814 Wait 454 | . 441 . 13 Move 2697 | 33 695 204 1765 Hop . | . . . . Pick Up 24 | 5 15 . 4 Fast Attach 5 | 1 . . 4 Attach 11 | 5 3 . 3 Detach 2 | . . . 2 Swap 15 | . 7 3 5 Drop 13 | . 6 . 7 Fire 78 | . 57 10 11 Melee . | . . . . Ram . | . . . . Kick . | . . . . Crush . | . . . . Escape Stasis . | . . . . Rewire . | . . . . Trap . | . . . . Miscellaneous 1 | . . 1 . Route ------- -11/Scrapyard -10/Materials (discovered 5 exits: [*Mat x3] / [*Min] / *Sub) -10/Subcaves (discovered 2 exits: [*Rec] / *Scr) -8/Scraptown (discovered 2 exits: [*Fac x2]) History --------- Turn | Location | Event 11 | -11/Scrapyard | Discovered new exit (range 16) 49 | -11/Scrapyard | Entered Materials 306 | -10/Materials | Build established: Mutant 586 | -10/Materials | Destroyed 7 combat bots 611 | -10/Materials | Discovered new exit (range 13) 749 | -10/Materials | Derelicts attacked the area 827 | -10/Materials | Discovered new exit (range 5) 983 | -10/Materials | Discovered new exit (range 8) 1106 | -10/Materials | Discovered new exit (range 16) 1623 | -10/Materials | Discovered new exit (range 8) 1804 | -10/Materials | Entered Subcaves 1805 | -10/Subcaves | Approached by a straggling Scientist 1936 | -10/Subcaves | Released subatomizers from SUBCON Basin 2124 | -10/Subcaves | Discovered new exit (range 11) 2125 | -10/Subcaves | Scientist uncovered a shortcut to Scraptown 2166 | -10/Subcaves | Entered Scraptown 2238 | -8/Scraptown | Heard Great Nut preacher, LISTEN AND RECITE! 2648 | -8/Scraptown | Discovered new exit (range 5) 2787 | -8/Scraptown | Scanned Subdweller tech in exchange for log data 2792 | -8/Scraptown | Learned location of Warlord (-4) 2840 | -8/Scraptown | Visited Fellowship of the Rings 2875 | -8/Scraptown | Visited Cyclists 2929 | -8/Scraptown | Visited Bundlers 3017 | -8/Scraptown | Visited UFD Registry 3017 | -8/Scraptown | Registered with UFD as "Gearcoil" 3053 | -8/Scraptown | Visited Awakened 3120 | -8/Scraptown | Visited Red Mages 3197 | -8/Scraptown | Visited Symbiants 3248 | -8/Scraptown | Visited SPCMW 3355 | -8/Scraptown | Entered Cyclist Reading Room 3361 | -8/Scraptown | Learned location of Zion (-6) 4147 | -8/Scraptown | Visited Derelict Rescue Squad 4157 | -8/Scraptown | Found DRS Beacon 4259 | -8/Scraptown | Visited DA-N13 Charitable Foundation 4275 | -8/Scraptown | Found DCF Scrap (31 items) 4330 | -8/Scraptown | Visited Junk Repository 4372 | -8/Scraptown | Visited Curators Association 4499 | -8/Scraptown | Discovered new exit (range 5) 4611 | -8/Scraptown | Visited Scrapoid Research Area 4650 | -8/Scraptown | Visited Scrapoid Pod Storage 4705 | -8/Scraptown | Met Optimus 4705 | -8/Scraptown | Accepted into 0bPrime 4787 | -8/Scraptown | Visited Junk Repository 4807 | -8/Scraptown | Visited Observation Area 4866 | -8/Scraptown | Civil war broke out across Scraptown 4953 | -8/Scraptown | Lost 4 allies 4968 | -8/Scraptown | Core integrity fell below 50% 5077 | -8/Scraptown | Destroyed by T7-11P(j) with Overtuned Pulse Rifle Last Messages --------------- Acquired 6 matter. Mak. Salvage Targeting Computer melted. 82-MLK(j) destroyed. Acquired 6 matter. Acquired Ovr. Treads. Acquired 10 matter. Critical hit (Burn: +50). Assault Rifle destroyed. Ovr. Treads suddenly begins malfunctioning. Critical hit (Burn: +50). Acquired 11 matter. Critical hit (Burn: +50). Assault Rifle destroyed. Lgt. Treads destroyed. S1-MDY(j) suffers critical hit (Destroy). CD-C15(j) heat damages Scrap Suit. Assault Rifle destroyed. Critical hit (Burn: +50). Arm. Treads destroyed. S1-MDY(j) destroyed. Map ----- +----------------------------------------------------+ | """""""""""""""""""""""""""" "## " """"" | | ""###### ################"" "## """ """ | | ""# ###########"" "############ | | ""# X"##??????##"" "##"""""#"""" | | ""# "" "" ###????####"" "##? "#"??? | | ""# "" "" X"##########"" "## "#"??? | | ""# " " ######### #"" [ "## "#"??? | | "" "" !!=[ !"#"??? | | "" "" =*% %!## "#"??? | | ""# " " ######### #""=%![% "# "#"??? | | ""# "" "" ""##########"" ! "##"""" #"??? | | ""# "" "" ###????####" "#########??? | | ""# X"##??????##"" ## ]!##??? | | ""# ###########"" "## ! ##??? | | ""###### ################"" [%"## #####??? | | """""""""""""""""""""""" """ *= "# [##??? | | """ """"" """""""""" /""* =!##??? | | *%= !%%[ "## ]##??? | | [= ==!= ## #####??? | | !%* ## !! ##??? | | ! [[!!! ## ![!##??? | | !* =%* [%%! ########??? | | """" """""""""""%""""" "" * ""!%=!#########??? | | #### ##########==##########!j!####=!%/"##????????? | | """"""""##### ##### j = ##"[ ###????????? | | ##### ##?## @ ""##" "###???????? | | ####"! !##?##"!% j "###= # ##???????? | | #### #! !##?##"%j""%" "###% ####???????? | | ######! !##### =% " "### ############ | | ######! !####; " %" "### =############ | | # ##??##! !### ; " " "### %! # | | # # # ##??## ## ; !" " "### ! ## | | # ## ####??######### ; [""" " "### # | | #########??######## ;"%== "### # | | ######???????????## # #""""" """### *== # | | ?????????????????## ########"######==%############ | | ?????????????????###########"######%![############ | | ?????????##"?"##"""##"""##"" ##"|"#! """"##?????? | | ?????????##|""##" "## "##"" ##" # "" "##?????? | | ???????? =[%! "##?????? | | ???????? [*= !!= %=! ! " "##?????? | | ???????? !%*[ =%[ =%! """"##?????? | | ???????????"" ##"" ##"|"##!!=##"" ##!#######?????? | | ?????????????"##"?"##"""##"" ##"""##########?????? | | ???????????????????#########"##########??????????? | | ???????????????????#################?????????????? | | ??????????????????????????#####??????????????????? | | ?????????????????????????????????????????????????? | | ?????????????????????????????????????????????????? | | ?????????????????????????????????????????????????? | +----------------------------------------------------+ Best States ------------- Heat Dissipation 25 Energy Generation 14 Energy Capacity 275 Matter Stores 300 Matter Capacity 300 Sight Range 21 Terrain Scan Range 14 Terrain Scan Density 10 Evasion (%) 50 Recoil Reduction 2 Item Schematics ----------------- None Robot Schematics ------------------ None Fabricated ------------ Nothing Repaired ---------- Nothing Alien Tech Used ----------------- None Achievements -------------- None Challenges ------------ None Game ------ Seed RemoteTrapBroadsword Manual? 0 Play Time 00:51:45 Cumulative 21.5 hours Start 2025.09.09 @ 14:25:18 End 2025.09.09 @ 15:32:27 Sessions 1 Manual Loads 0 Difficulty Rogue Special Mode None Game No. 48 Rogue 48 Adventurer 0 Explorer 0 Win Type - Total 0 Types 0/0/0/0/0/0/0/0/0/0 Lore% 18 Gallery% 17 Achievement% 17 Wizard Run 0 Options --------- Layout 1 ASCII 0 Keyboard 0 Movement Mouse Keybinds 0 Fullscreen 2 Font 24/Smallcaps Map View 50x35 Zoom Use 0% Tactical HUD 0 Map Filters NONE Filters NONE Steam 1 RUN: ab2c2118-8df1-47b4-8a55-e6d54c0bf0c7